Cogmind - Beta 15 @@@ ROGUE MODE // 2025.10.08 @ 18:04:14 Player: MirenBlacksword Result: Destroyed by I5-JQW(R) with Subdweller Laser Performance ------------- Evolutions (0) 0 Regions Visited (3) 600 Robots Destroyed (30) 150 Value Destroyed (657) 657 Prototype IDs (1) 20 Alien Tech Used (0) 0 Bonus (0) 0 TOTAL SCORE: 1427 Bonus ------- None Cogmind --------- Core Integrity 0/250 Matter 287/300 Energy 265/265 System Corruption 0% Temperature Cool (6) Movement Core (150) Ox2 Location -10/Subcaves Parts ------- > --- POWER (1) -------- Improved Ion Engine > --- PROPULSION (2) --- (None) > --- UTILITY (2) ------ (None) > --- WEAPON (2) ------- Assault Rifle > --- INVENTORY (5) ---- Flight Unit Flight Unit Improved Terrain Scanner Shield Generator Peak State ------------ > --- POWER ------------ Improved Ion Engine > --- PROPULSION ------- Light Treads Compact Wheel > --- UTILITY ---------- Large Storage Unit Seismic Detector > --- WEAPON ----------- Improved Medium Laser Assault Rifle > --- INVENTORY -------- Improved Ion Engine Aluminum Leg Aluminum Leg Flight Unit Flight Unit Medium Storage Unit Improved Terrain Scanner Shield Generator Improved Medium Laser Assault Rifle Light Assault Rifle Light Assault Rifle Mining Laser Mining Laser [Rating: 12] Favorites ----------- Power Improved Ion Engine Engine Improved Ion Engine Propulsion Aluminum Leg Treads Light Treads Leg Aluminum Leg Wheel Compact Wheel Utility Seismic Detector Device Seismic Detector Storage Large Storage Unit Weapon Improved Medium Laser Energy Gun Improved Medium Laser Ballistic Gun Light Assault Rifle Launcher Rocket Launcher Build | -11 -10 -10 -10 ------- Run | Yrd Mat Min Sub Slots Evolved . | . . . . Power . | . . . . Propulsion . | . . . . Utility . | . . . . Weapon . | . . . . Parts Attached 18 | 5 9 4 . Power 1 | . 1 . . Engine 1 | . 1 . . Core . | . . . . Reactor . | . . . . Propulsion 6 | 2 1 3 . Treads 2 | 2 . . . Leg 3 | . . 3 . Wheel 1 | . 1 . . Hover . | . . . . Flight . | . . . . Utility 3 | 1 2 . . Device 1 | 1 . . . Storage 2 | . 2 . . Processor . | . . . . Hackware . | . . . . Protection . | . . . . Artifact . | . . . . Weapon 8 | 2 5 1 . Energy Gun 3 | . 3 . . Energy Cannon . | . . . . Ballistic Gun 3 | 2 1 . . Ballistic Cannon . | . . . . Launcher 2 | . 1 1 . Special Weapon . | . . . . Impact Weapon . | . . . . Slashing Weapon . | . . . . Piercing Weapon . | . . . . Special Melee Weapon . | . . . . Unidentified Prototypes 1 | . 1 . . Parts Lost 8 | . 3 1 4 Power . | . . . . Propulsion 3 | . 1 . 2 Utility 1 | . . . 1 Weapon 4 | . 2 1 1 Highest Loss Streak 4 | . 3 1 4 To Critical Strikes . | . . . . Average Backups 12 | 6 9 14 13 Power . | 1 1 1 . Propulsion 3 | 4 1 4 3 Utility 2 | . 2 3 3 Weapon 5 | 1 4 5 5 Tool/Special . | . . . . Unused Backups 21 | 2 6 . 13 Power 5 | 1 3 . 1 Propulsion 7 | . 3 . 4 Utility 5 | 1 . . 4 Weapon 4 | . . . 4 Tool/Special . | . . . . Average Slot Usage (%) 95 | . 98 98 74 Engine 14 | . 14 14 14 Treads 6 | . 24 . . Leg 19 | . . 26 25 Wheel 1 | . 2 . . Device 13 | . 14 14 10 Storage 13 | . 14 14 11 Energy Gun 12 | . 11 14 11 Ballistic Gun 4 | . 8 3 . Launcher 7 | . 8 9 . Peak Build Rating 12 | 8 12 12 10 Average Rating 10 | 6 9 11 8 On Entrance 9 | 6 8 12 10 Naked Turns . | . . . . Heaviest Build 35 | 13 33 35 31 Greatest Support 40 | 40 40 20 20 Greatest Overweight (x) 2 | . 2 2 2 Average Overweight (x) . | . . 1 . Largest Inventory Capacity 15 | 8 15 15 15 Average Capacity 13 | 8 12 15 13 Most Carried 15 | 8 14 15 15 Average Carried 12 | 6 9 14 13 Final Capacity 15 | 8 15 15 5 Final Carried 15 | 8 14 15 4 Class Distribution -------------------- 100% | Mutant Dominant Class ---------------- Mutant | -10/Materials Mutant | -10/Mines Mutant | -10/Subcaves Resources | -11 -10 -10 -10 ----------- Run | Yrd Mat Min Sub Matter Collected 733 | 286 97 350 . Remotely . | . . . . Salvage Created 742 | 187 282 273 . Parts 47 | 8 26 13 . Haulers Intercepted . | . . . . Recyclers Shooed . | . . . . Parts Field Recycled . | . . . . Retrieved Matter . | . . . . Parts Self-Destructed 8 | . . . 8 Prevented . | . . . . Kills | -11 -10 -10 -10 ------- Run | Yrd Mat Min Sub Combat Hostiles Destroyed 22 | . 13 9 . Guns 9 | . 5 4 . AOE 13 | . 8 5 . Classes Destroyed 6 | 2 4 . . Builder 1 | . 1 . . Tunneler 4 | 3 . 1 . Recycler 1 | 1 . . . Watcher 2 | . 2 . . Swarmer 11 | . 8 3 . Grunt 11 | . 5 6 . Best Kill Streak 7 | 2 7 3 . Combat Bots Only 4 | . 4 3 . Max Kills in Single Turn 3 | 1 2 3 . Gunslinging . | . . . . Exploded 2 | . 2 2 . Melee . | . . . . Uniques/NPCs Destroyed . | . . . . Combat | -11 -10 -10 -10 -------- Run | Yrd Mat Min Sub Hostile Shots Fired 103 | . 54 23 26 Missed 23 | . 9 5 9 Hits 80 | . 45 18 17 Projectile 80 | . 45 18 17 Critical Strikes 1 | . . 1 . Damage Taken 1204 | . 560 273 371 Core 266 | . 97 47 122 Absorbed by Shields . | . . . . Core Remaining (%) 100 | 100 . . . Volleys Fired 67 | 21 27 18 1 Largest 2 | 2 2 2 1 Hottest 89 | 60 76 89 20 Shots Fired 125 | 42 52 30 1 Gun 106 | 42 41 22 1 Cannon . | . . . . Launcher 19 | . 11 8 . Special . | . . . . Kinetic 60 | 36 15 8 1 Thermal 29 | . 15 14 . Explosive 19 | . 11 8 . Electromagnetic 17 | 6 11 . . Robot Hit Streak 10 | 10 7 5 . Robot Miss Streak 4 | 4 3 4 . Penetration Max . | . . . . Secondary Targets 2 | . 2 . . Max Gunslinging Chain 1 | . 1 . . Shots Hit Robots 68 | 24 28 16 . Core Hits 43 | 8 20 15 . Critical Kills . | . . . . Critical Parts Destroyed 1 | . 1 . . Critical Strikes 4 | . 3 1 . Burn 3 | . 2 1 . Destroy 1 | . 1 . . Melee Attacks . | . . . . Impact . | . . . . Slashing . | . . . . Piercing . | . . . . Sneak Attacks . | . . . . Combat Hostiles . | . . . . Follow-up Attacks . | . . . . Damage Inflicted 1849 | 239 877 733 . Guns 728 | 207 297 224 . Cannons . | . . . . Explosions 1121 | 32 580 509 . Melee . | . . . . Ramming . | . . . . Kinetic 328 | 180 107 41 . Thermal 352 | 32 137 183 . Explosive 1089 | . 580 509 . Electromagnetic 80 | 27 53 . . Impact . | . . . . Slashing . | . . . . Piercing . | . . . . Highest Corruption . | . . . . Average Corruption . | . . . . Corruption Purged . | . . . . Corruption Blocked . | . . . . Overload Shots . | . . . . Overflow Damage 44 | . 25 19 . Projectiles . | . . . . Explosions 44 | . 25 19 . Melee . | . . . . Knockbacks . | . . . . Impact . | . . . . Kinetic . | . . . . Secondary . | . . . . Self-Inflicted Damage 209 | . 161 48 . Shots 5 | . 3 2 . Rammed . | . . . . Targets Rammed . | . . . . Kicked . | . . . . Crushed . | . . . . Highest Temperature 195 | 20 162 195 . Average Temperature 55 | 15 49 73 . Received Heat Transfer 252 | . 66 132 54 Siege Activations . | . . . . Martial Activations . | . . . . Shielding Activations . | . . . . Robots Disrupted . | . . . . Combat Hostiles . | . . . . Robots Corrupted . | . . . . Combat Hostiles . | . . . . Parts Fried . | . . . . Impact Corruptions . | . . . . Robots Melted . | . . . . Combat Hostiles . | . . . . Parts Melted . | . . . . Heat Transferred 975 | 50 444 481 . Parts Sabotaged . | . . . . Parts Stolen . | . . . . Parts Stripped . | . . . . Power Chain Reactions 1 | 1 . . . Alert | -11 -10 -10 -10 ------- Run | Yrd Mat Min Sub Maximum Alert Level 1 | . 1 . . Low Security (%) 93 | 100 75 100 . Level 1 6 | . 24 . . Level 2 . | . . . . Level 3 . | . . . . Level 4 . | . . . . Level 5 . | . . . . High Security . | . . . . Max Security . | . . . . Peak Influence 347 | 10 347 179 . Initial 129 | . . 129 . Average 64 | 1 116 50 . Influence Increases 792 | 20 498 274 . Destroy 0b10 Robot/C 440 | . 260 180 . Destroy 0b10 Robot/NC 40 | 20 15 5 . Destroy Leader 94 | . 54 40 . Successful Hack 17 | . 17 . . Disable Machine 75 | . 75 . . Destroy Structure 111 | . 62 49 . Lose Combat Pursuer 15 | . 15 . . Influence Decreases 792 | 20 167 576 29 Entered New Map 218 | . . 202 16 Time Decay 534 | 20 137 364 13 Lost Part 40 | . 30 10 . Squads Dispatched 1 | . 1 . . Investigation . | . . . . Extermination . | . . . . Reinforcement 1 | . 1 . . Assault . | . . . . Garrison . | . . . . Intercept . | . . . . Searches Triggered . | . . . . Construction Impeded . | . . . . Haulers Reinforced . | . . . . Active Scanning Responses . | . . . . Cargo Convoy Interrupts . | . . . . Stealth | -11 -10 -10 -10 --------- Run | Yrd Mat Min Sub Distress Signals 3 | . 3 . . Communications Jammed . | . . . . Distress Signals . | . . . . Times Spotted 28 | . 15 9 4 Peak Tracking Total 4 | . 4 3 4 Tactical Retreats 1 | . 1 . . Traps | -11 -10 -10 -10 ------- Run | Yrd Mat Min Sub Traps Triggered . | . . . . Indirectly . | . . . . Trap Hack Attempts . | . . . . Triggered . | . . . . Disarmed . | . . . . Reprogrammed . | . . . . Reused . | . . . . Traps Extracted . | . . . . Installed . | . . . . Triggered . | . . . . Machines | -11 -10 -10 -10 ---------- Run | Yrd Mat Min Sub Machines Disabled 6 | . 6 . . Max in Single Turn 2 | . 2 . . Machines Repaired . | . . . . Machines Dismantled . | . . . . Machines Sabotaged . | . . . . Overloaded Fab Kills . | . . . . Hacking | -11 -10 -10 -10 --------- Run | Yrd Mat Min Sub Machines Accessed 3 | . 3 . . Terminals 3 | . 3 . . Fabricators . | . . . . Repair Stations . | . . . . Recycling Units . | . . . . Scanalyzers . | . . . . Garrison Access . | . . . . Total Hacks 7 | . 7 . . Successful 4 | . 4 . . Failed 3 | . 3 . . Catastrophic . | . . . . Database Lockouts . | . . . . Manual 4 | . 4 . . Terminals 7 | . 7 . . Fabricators . | . . . . Repair Stations . | . . . . Recycling Units . | . . . . Scanalyzers . | . . . . Garrison Access . | . . . . Terminal Hacks 2 | . 2 . . Robot Analysis 1 | . 1 . . Branch Access Points 1 | . 1 . . Fabricator Hacks . | . . . . Repair Station Hacks . | . . . . Recycling Unit Hacks . | . . . . Scanalyzer . | . . . . Garrison Access Hacks . | . . . . Unauthorized Hacks 2 | . 2 . . Terminals 2 | . 2 . . Botnet 2 | . 2 . . Fabricators . | . . . . Repair Stations . | . . . . Recycling Units . | . . . . Scanalyzers . | . . . . Garrison Access . | . . . . Data Cores Recovered . | . . . . Used . | . . . . Hacking Detections 3 | . 3 . . Full Trace Events . | . . . . Feedback Events . | . . . . Feedback Blocked . | . . . . Robot Schematics Acquired . | . . . . Robots Built . | . . . . Authchips . | . . . . Time . | . . . . Total Robot Build Rating . | . . . . Part Schematics Acquired . | . . . . Parts Built . | . . . . Authchips . | . . . . Time . | . . . . Total Part Build Rating . | . . . . Parts Repaired . | . . . . Time . | . . . . Parts Recycled . | . . . . Recycled Matter . | . . . . Retrieved Matter . | . . . . Retrieved Components . | . . . . Parts Scanalyzed . | . . . . Part Schematics Acquired . | . . . . Parts Damaged . | . . . . Bothacking | -11 -10 -10 -10 ------------ Run | Yrd Mat Min Sub Used RIF Installer . | . . . . Robots Hacked . | . . . . Non-combat . | . . . . Combat . | . . . . Robot Hacks Applied . | . . . . Relay Couplers Released . | . . . . Fabnet Peak Effective % . | . . . . Robots Rewired . | . . . . Allies Hacked . | . . . . Hacks Repelled . | . . . . Allies | -11 -10 -10 -10 -------- Run | Yrd Mat Min Sub Total Allies 1 | . . 1 . Largest Group 1 | . . 1 1 Highest-Rated Group 31 | . . 31 31 Highest-Rated Ally 31 | . . 31 31 Total Orders . | . . . . Ally Attacks 6 | . . . 6 Total Damage 103 | . . . 103 Kills . | . . . . Allies Corrupted . | . . . . Allies Melted . | . . . . Intel | -11 -10 -10 -10 ------- Run | Yrd Mat Min Sub Active Infowar (turns) 1962 | 16 481 1270 195 Seismic 1962 | 16 481 1270 195 Robot Analysis Total 1 | . 1 . . Derelict Logs Recovered 4 | . . 3 1 Drone Launches . | . . . . Drone Recoveries . | . . . . Exploration | -11 -10 -10 -10 ------------- Run | Yrd Mat Min Sub Turns Passed 2136 | 128 481 1270 257 Spaces Moved 985 | 44 206 591 144 Core 9 | . . . 9 Treads 192 | 19 173 . . Legs 719 | 25 . 559 135 Wheels 65 | . 33 32 . Hover . | . . . . Flight . | . . . . Fastest Speed 120 | 120 130 130 120 Average Speed 176 | 137 157 186 174 Slowest Speed 240 | 160 240 190 190 Overloaded Moves . | . . . . Propulsion Burnouts . | . . . . Robots Hopped . | . . . . Potential Cave-ins . | . . . . Cave-ins Triggered . | . . . . Exploration Rate (%) 36 | 4 42 81 19 Regions Visited 3 Branch Regions 2 Pre-discovered Areas 1 | . . 1 . Known Exits Taken 2 | . 1 1 . Unknown Exits Taken 1 | 1 . . . Scrap Searched 1 | . . 1 . Spaces Dug . | . . . . Terrain Destroyed 134 | 6 62 66 . Melee . | . . . . Projectile . | . . . . AOE 134 | 6 62 66 . Terrain Rammed . | . . . . Walls Destroyed . | . . . . Machines Disabled . | . . . . Actions | -11 -10 -10 -10 --------- Run | Yrd Mat Min Sub Total 1266 | 74 314 729 149 Wait 158 | 3 48 105 2 Move 982 | 43 205 590 144 Hop . | . . . . Pick Up 22 | 2 15 5 . Fast Attach 1 | 1 . . . Attach 5 | . 4 . 1 Detach 1 | . 1 . . Swap 15 | 4 5 6 . Drop 15 | . 9 5 1 Fire 67 | 21 27 18 1 Melee . | . . . . Ram . | . . . . Kick . | . . . . Crush . | . . . . Escape Stasis . | . . . . Rewire . | . . . . Trap . | . . . . Miscellaneous . | . . . . Route ------- -11/Scrapyard -10/Materials (discovered 2 exits: *Min x2) -10/Mines -10/Subcaves History --------- Turn | Location | Event 18 | -11/Scrapyard | Discovered new exit (range 2) 129 | -11/Scrapyard | Entered Materials 129 | -10/Materials | Discovered new exit (range 7) 230 | -10/Materials | Identified exit to Mines 316 | -10/Materials | Build established: Mutant 539 | -10/Materials | Lost 3 parts (1n2w) 610 | -10/Materials | Entered Mines 901 | -10/Mines | Received a Rocket Launcher from a helpful Derelict 1537 | -10/Mines | Learned Materials emergency access door positions 1604 | -10/Mines | Identified exit to Subcaves 1764 | -10/Mines | Core integrity fell below 50% 1775 | -10/Mines | Escorted by a lone wolf Derelict 1795 | -10/Mines | Learned location of Storage (-7) 1880 | -10/Mines | Entered Subcaves 1880 | -10/Subcaves | Accompanied by 1 ally 1881 | -10/Subcaves | Approached by a straggling Scientist 2048 | -10/Subcaves | Learned 2 Materials zone layouts 2050 | -10/Subcaves | A Subdweller sparked back to life 2050 | -10/Subcaves | A Subdweller sparked back to life 2086 | -10/Subcaves | Core integrity fell below 20% 2123 | -10/Subcaves | Shifting Twisted Machinery released Sub. Beam Cannon 2123 | -10/Subcaves | Shifting Twisted Machinery released Mak. System Restoration Module 2137 | -10/Subcaves | Destroyed by I5-JQW(R) with Subdweller Laser Last Messages --------------- 02064_ Z0-CTI(g) destroyed. 02067_ Subatomizers dissect the Carbon-fiber Leg. 02073_ SK-U82(c) destroyed. 02075_ Seismic Detector destroyed. 02082_ Imp. Medium Laser destroyed. 02084_ 95-TUP(R) destroyed. 02085_ Tech Extrapolator violently self-destructs. 02090_ Dropped Lrg. Storage Unit. 02092_ Subatomizers dissect the Carbon-fiber Leg. 02094_ Aluminum Leg destroyed. 02103_ Subatomizers dissect the Carbon-fiber Leg. 02121_ Aluminum Leg destroyed. Sub. Beam Cannon falls loose from the Twisted Machinery. Mak. System Restoration Module falls loose from the Twisted Machinery. Map ----- +----------------------------------------------------+ | ?????????????????????????????????????????????????? | | ?????????????????????????????????????????????????? | | ?????????????????????????????????????????????????? | | ?????????????????????????????????????????????????? | | ?????????????????????????????????????????????????? | | ?????????????????????????????????????????????????? | | ?????????????#####??????????###??????????????????? | | ???????????### # #???????### ???????????????????? | | ??????????## ##?????? ????????????????????? | | ??????????# #???### ?????????????????????? | | ???????????# ##### #??????????????????????? | | ????????????# ## #??????????????????????? | | ??###????????# #???????????????????????? | | ### #????????# #??####??????????????????? | | #????????# ### #??????????????????? | | ####?????# #??????????????????? | | ####### #??????????????????? | | ### #### ! ##?????????????????? | | ##### ## #??##" #####"????????????? | | |!#??###### ##???## """????????????? | | [*[##??????## #?????# R """????????????? | | [!!=##??????## #?????## """"#????????????? | | |=*=!##??????# #?????# ### """"?????????????? | | ###% #??????# #????## ##???"""??????????????? | | ###!%=#??????# #????# ##????????????????????? | | ! ##?????# $ #????##@ "#????????????????????? | | ##????# ##?????#"""#????????????????????? | | ###### ??????# ] ???????????????????? | | ### ##?????# #?????????????????? | | # ?????? ????????????????? | | #### ""?????? ???????????????? | | #???### #### ""????? ???????????????? | | ???????# #????### "????? #??????????????? | | ???????? ???????#??????### ??????????????? | | ???????? " ????????????????# ??????????????? | | ????????? " ???????????????? ???????????????? | | ????????? " ???????????????? #?????????????????? | | ?????????"" ??????????????? ???????????????????? | | ?????????? ?" ???????????????????????????????????? | | ??????????"?? ???????????????????????????????????? | | ?????????????????????????????????????????????????? | | ?????????????????????????????????????????????????? | | ?????????????????????????????????????????????????? | | ?????????????????????????????????????????????????? | | ?????????????????????????????????????????????????? | | ?????????????????????????????????????????????????? | | ?????????????????????????????????????????????????? | | ?????????????????????????????????????????????????? | | ?????????????????????????????????????????????????? | | ?????????????????????????????????????????????????? | +----------------------------------------------------+ Best States ------------- Heat Dissipation 25 Energy Generation 12 Energy Capacity 265 Matter Stores 300 Matter Capacity 300 Sight Range 16 Terrain Scan Density 10 Evasion (%) 55 Recoil Reduction 2 Item Schematics ----------------- None Robot Schematics ------------------ None Fabricated ------------ Nothing Repaired ---------- Nothing Alien Tech Used ----------------- None Achievements -------------- None Challenges ------------ None Game ------ Seed DiametricRagnarokSystem Manual? 0 Play Time 00:31:01 Cumulative 21.5 hours Start 2025.10.08 @ 16:38:30 End 2025.10.08 @ 18:04:14 Sessions 1 Manual Loads 0 Difficulty Rogue Special Mode None Game No. 20 Rogue 15 Adventurer 5 Explorer 0 Win Type - Total 1 Types 1/0/0/0/0/0/0/0/0/0 Lore% 23 Gallery% 17 Achievement% 25 Wizard Run 0 Options --------- Layout 1 ASCII 0 Keyboard 1 Movement Arrows Keybinds 0 Fullscreen 1 Font 24/Smallcaps Map View 50x35 Zoom Use 0% Tactical HUD 1 Map Filters NONE Filters NONE Steam 1 RUN: 177aa1b0-5369-4288-9527-d0e47fa362e1